bitfinex-derivatives/quotes_BTCF0:USTF0_20250602
["timestamp","ask_amount","ask_price","bid_price","bid_amount"]
[1748827859062,2.11720595,105470.0,105460.0,0.0020861]
[1748827859867,2.00225548,105470.0,105460.0,0.0020861]
[1748827860173,2.11720595,105470.0,105460.0,0.0020861]
[1748827862071,2.00225548,105470.0,105460.0,0.0020861]
[1748827862272,2.00225548,105470.0,105460.0,0.0323861]
[1748827863474,2.11295641,105470.0,105460.0,0.0323861]
[1748827866279,1.99800594,105470.0,105460.0,0.0323861]
[1748827866474,2.11295641,105470.0,105460.0,0.0323861]
[1748827867671,2.11295641,105470.0,105460.0,0.07665145]
[1748827867986,2.11295641,105470.0,105460.0,0.0323861]
[1748827868166,2.11295641,105470.0,105460.0,0.0020861]
[1748827868578,2.11720595,105470.0,105460.0,0.0020861]
[1748827868779,2.11720595,105470.0,105460.0,0.04637837]
[1748827869477,2.11295641,105470.0,105460.0,0.04637837]
[1748827869981,2.56255641,105470.0,105460.0,0.23593407]
[1748827870180,2.56255641,105470.0,105460.0,0.33073407]
[1748827870181,2.56243641,105470.0,105460.0,0.33073407]
[1748827870369,2.56255641,105470.0,105460.0,0.33073407]
[1748827870681,2.56680595,105470.0,105460.0,0.37498556]
[1748827870871,2.45185548,105470.0,105460.0,0.37498556]
[1748827871178,2.56660595,105470.0,105460.0,0.37498556]
[1748827872185,2.56660595,105470.0,105460.0,0.33084164]
[1748827872573,2.56660595,105470.0,105460.0,0.3751969]
[1748827873577,1.97065548,105470.0,105460.0,0.3751969]
[1748827873782,2.41949548,105470.0,105460.0,0.4351969]
[1748827873986,2.38961548,105470.0,105460.0,0.4351969]
[1748827874479,2.38945548,105470.0,105460.0,0.4351969]
[1748827874679,1.94053548,105470.0,105460.0,0.4351969]
[1748827874880,1.94065548,105470.0,105460.0,0.4351969]
[1748827875074,2.50396595,105470.0,105460.0,0.21005294]
[1748827875275,2.43626595,105470.0,105460.0,0.39960864]
[1748827875505,2.43626595,105470.0,105460.0,0.43170864]
[1748827876381,2.43626595,105470.0,105460.0,0.24215294]
[1748827876685,2.43626595,105470.0,105460.0,0.15083974]
[1748827876883,2.43626595,105470.0,105460.0,0.34039544]
[1748827877574,2.43626595,105470.0,105460.0,0.15083974]
[1748827877775,2.43626595,105470.0,105460.0,0.15475967]
[1748827877970,2.43626595,105470.0,105460.0,0.09475967]
[1748827878182,2.43626595,105470.0,105460.0,0.04644079]
[1748827878578,2.53626595,105470.0,105460.0,0.04644079]
[1748827879392,2.87626595,105470.0,105460.0,0.04644079]
[1748827884684,2.87626595,105470.0,105460.0,0.09475967]
[1748827885693,2.87626595,105470.0,105460.0,0.09478442]
[1748827885993,2.76131548,105470.0,105460.0,0.28434012]
[1748827886189,2.62626595,105470.0,105460.0,0.31754012]
[1748827886688,2.62626595,105470.0,105460.0,0.34954012]
[1748827887291,2.53606595,105470.0,105460.0,0.34954012]
[1748827887493,2.53618595,105470.0,105460.0,0.38164012]
[1748827887698,2.53606595,105470.0,105460.0,0.39164012]
[1748827887880,2.53606595,105470.0,105460.0,0.4360604]
[1748827888393,2.53618595,105470.0,105460.0,0.38774152]
[1748827889296,2.42123548,105470.0,105460.0,0.37774152]
[1748827889590,2.53618595,105470.0,105460.0,0.37774152]
[1748827889893,2.53594595,105470.0,105460.0,0.42217731]
[1748827890291,2.08758595,105470.0,105460.0,0.42217731]
[1748827890502,2.53578595,105470.0,105460.0,0.37775703]
[1748827890689,2.53578595,105470.0,105460.0,0.42775703]
[1748827891096,2.48792093,105470.0,105460.0,0.42775703]
[1748827891996,1.53167046,105470.0,105460.0,1.03776877]
[1748827892187,1.97963046,105470.0,105460.0,1.03776877]
[1748827892493,1.97975046,105470.0,105460.0,1.04059106]
[1748827892692,2.02790093,105470.0,105460.0,1.04059106]
[1748827893397,2.02790093,105470.0,105460.0,1.13333249]
[1748827894188,2.02790093,105470.0,105460.0,1.04452555]
[1748827894390,2.02790093,105470.0,105460.0,1.13332446]
[1748827894796,1.91295046,105470.0,105460.0,1.13332446]
[1748827895800,1.46487046,105470.0,105460.0,1.13332446]
[1748827896098,1.91239046,105470.0,105460.0,1.13332446]
[1748827896596,2.02734093,105470.0,105460.0,1.13331038]
[1748827896907,2.38814093,105470.0,105460.0,0.53251038]
[1748827897084,2.41814093,105470.0,105460.0,0.32875325]
[1748827897287,2.62814093,105470.0,105460.0,0.32875325]
[1748827898593,2.62814093,105470.0,105460.0,0.3287574]
[1748827899189,2.62814093,105470.0,105460.0,0.04646504]
[1748827899385,2.74580043,105470.0,105460.0,0.0020861]
[1748827899791,2.84580043,105470.0,105460.0,0.0020861]
[1748827900197,2.28940043,105470.0,105460.0,0.0020861]
[1748827900389,2.58496043,105470.0,105460.0,0.0020861]
[1748827900594,2.94564043,105470.0,105460.0,0.0020861]
[1748827900791,2.94564043,105470.0,105460.0,0.2516418]
[1748827900995,2.83080996,105470.0,105460.0,0.1916418]
[1748827901196,2.94576043,105470.0,105460.0,0.1916418]
[1748827901397,2.58496043,105470.0,105460.0,0.1916418]
[1748827901699,1.67978093,105470.0,105460.0,0.48601145]
[1748827901907,2.01235046,105470.0,105460.0,0.57701145]
[1748827902103,2.01223046,105470.0,105460.0,0.57701145]
[1748827902401,2.12730093,105470.0,105460.0,0.57701145]
[1748827902604,2.12730093,105470.0,105460.0,0.62533807]
[1748827902792,2.12730093,105470.0,105460.0,0.58096842]
[1748827902988,2.12730093,105470.0,105460.0,0.62533609]
[1748827904805,2.12730093,105470.0,105460.0,0.57700947]
[1748827905002,2.24496043,105470.0,105460.0,0.5326418]
[1748827906203,2.13000996,105470.0,105460.0,0.5326418]
[1748827906401,2.24496043,105470.0,105460.0,0.5326418]
[1748827907509,1.79744043,105470.0,105460.0,0.5326418]
[1748827907707,2.24444043,105470.0,105460.0,0.5326418]
[1748827907903,2.24456043,105470.0,105460.0,0.5326418]
[1748827909502,2.24456043,105470.0,105460.0,0.57701143]
[1748827909709,2.24456043,105470.0,105460.0,0.62536046]
[1748827911410,1.16944043,105470.0,105460.0,0.62536046]
[1748827912114,1.16944043,105470.0,105460.0,0.62536114]
[1748827912115,1.05178093,105470.0,105460.0,0.62536114]
[1748827914011,1.05178093,105470.0,105460.0,0.66976298]
[1748827914614,0.93683046,105470.0,105460.0,0.66976298]
[1748827914918,1.05178093,105470.0,105460.0,0.66976298]
[1748827917416,1.41258093,105470.0,105460.0,0.66976298]
[1748827917715,1.41258093,105470.0,105460.0,0.66976967]
[1748827918920,1.41258093,105470.0,105460.0,0.63966967]
[1748827920617,1.41258093,105470.0,105460.0,0.63967031]
[1748827922319,1.05178093,105470.0,105460.0,0.63967031]
[1748827922513,1.41258093,105470.0,105460.0,0.63967031]
[1748827922918,1.41082093,105470.0,105460.0,0.63967031]
[1748827923720,1.29587046,105470.0,105460.0,0.68798714]
[1748827923915,0.93491046,105470.0,105460.0,0.71908714]
[1748827925617,1.04986093,105470.0,105460.0,0.71908714]
[1748827928029,1.04986093,105470.0,105460.0,0.71909883]
[1748827931225,0.60466093,105470.0,105460.0,0.71909883]
[1748827931420,1.04906093,105470.0,105460.0,0.63030548]
[1748827931625,1.04906093,105470.0,105460.0,0.71914033]
[1748827932418,1.04906093,105470.0,105460.0,0.71917026]
[1748827932927,1.04906093,105470.0,105460.0,0.77837939]
[1748827933828,1.40986093,105470.0,105460.0,0.77837939]
[1748827934127,1.40986093,105470.0,105460.0,0.71917026]
[1748827936126,1.04906093,105470.0,105460.0,0.71917026]
[1748827936326,1.40986093,105470.0,105460.0,0.71917026]
[1748827936722,1.40986093,105470.0,105460.0,0.71917172]
[1748827937022,1.40986093,105470.0,105460.0,0.68807172]
[1748827938426,1.40986093,105470.0,105460.0,0.74728085]
[1748827938826,1.40974093,105470.0,105460.0,0.77798085]
[1748827940033,1.29479046,105470.0,105460.0,0.77798085]
[1748827940223,1.40974093,105470.0,105460.0,0.7779804]
[1748827940629,1.40974093,105470.0,105460.0,0.62717127]
[1748827940933,1.40974093,105470.0,105460.0,0.67161996]
[1748827941233,1.40974093,105470.0,105460.0,0.62717084]
[1748827941628,1.40974093,105470.0,105460.0,0.66027084]
[1748827942528,0.96534093,105470.0,105460.0,0.66027084]
[1748827942727,1.29455046,105470.0,105460.0,0.66027084]
[1748827942934,1.29455046,105470.0,105460.0,0.69347084]
[1748827943336,0.48959046,105470.0,105460.0,0.68637997]
[1748827943534,0.48959046,105470.0,105460.0,1.06246532]
[1748827943535,0.48534092,105470.0,105460.0,1.06246532]
[1748827943731,1.04449139,105470.0,105460.0,0.76205863]
[1748827943932,0.94449139,105470.0,105460.0,0.76205863]
[1748827944423,0.94449139,105470.0,105460.0,0.70166532]
[1748827944637,1.30954093,105470.0,105460.0,0.70166532]
[1748827945542,1.30954093,105470.0,105460.0,0.70164188]
[1748827947533,1.19459046,105470.0,105460.0,0.74998349]
[1748827947737,1.30954093,105470.0,105460.0,0.74998349]
[1748827948232,1.30954093,105470.0,105460.0,0.74999201]
[1748827948834,0.83379046,105470.0,105460.0,0.7016504]
[1748827949229,1.19459046,105470.0,105460.0,0.74998984]
[1748827949730,0.83379046,105470.0,105460.0,0.74999839]
[1748827949931,1.19459046,105470.0,105460.0,0.74999839]
[1748827950639,0.83379046,105470.0,105460.0,0.74999839]
[1748827950940,0.83311046,105470.0,105460.0,0.49999839]
[1748827951140,0.83299046,105470.0,105460.0,0.55999839]
[1748827951439,0.94819679,105470.0,105460.0,0.55999839]
[1748827952634,0.1895557,105460.0,105450.0,0.04833944]
[1748827952827,0.99031469,105460.0,105450.0,0.04833944]
[1748827953138,0.1895737,105450.0,105440.0,0.45231068]
[1748827953334,0.36806003,105450.0,105440.0,1.08477124]
[1748827953537,0.9187113,105450.0,105440.0,1.13946426]
[1748827953839,0.7292576,105450.0,105440.0,1.35036711]
[1748827954035,0.9188313,105450.0,105440.0,1.33829829]
[1748827954342,0.16977127,105450.0,105440.0,1.33829829]
[1748827954541,0.13887127,105450.0,105440.0,1.49566701]
[1748827954834,0.2539576,105450.0,105440.0,1.38055386]
[1748827955034,0.2538376,105450.0,105440.0,1.38055386]
[1748827955337,0.13875127,105450.0,105440.0,1.26549038]
[1748827955529,0.13887127,105450.0,105440.0,1.26849038]
[1748827955729,0.13887127,105450.0,105440.0,1.20928125]
[1748827956032,0.13887127,105450.0,105440.0,1.21128125]
[1748827956231,0.13887127,105450.0,105440.0,1.21124576]
[1748827956437,0.13887127,105450.0,105440.0,1.21124579]
[1748827956837,0.13887127,105450.0,105440.0,1.21124684]
[1748827957138,0.13887127,105450.0,105440.0,1.21124688]
[1748827957340,0.13887127,105450.0,105440.0,0.85044597]
[1748827957541,0.13887127,105450.0,105440.0,1.57204597]
[1748827958136,0.10625127,105450.0,105440.0,1.78199353]
[1748827958337,0.00012007,105450.0,105440.0,1.78196293]
[1748827958544,0.00012007,105450.0,105440.0,1.79796405]
[1748827958841,0.00012,105450.0,105440.0,1.79796405]
[1748827959242,0.00012,105450.0,105440.0,3.23757074]
[1748827959442,0.00012,105450.0,105440.0,3.29796004]
[1748827960236,0.00012,105450.0,105440.0,3.74244004]
[1748827960435,0.00012,105450.0,105440.0,3.75545669]
[1748827960836,0.00012,105450.0,105440.0,3.75545917]
[1748827961236,0.00012,105450.0,105440.0,3.7554594]
[1748827961839,0.00012,105450.0,105440.0,3.75545927]
[1748827962237,0.00012,105450.0,105440.0,3.83761628]
[1748827963143,0.03014228,105460.0,105450.0,0.1895736]
[1748827963340,0.03014228,105460.0,105450.0,1.19110707]
[1748827963541,0.03014228,105460.0,105450.0,1.07599097]
[1748827963742,0.06104228,105460.0,105450.0,1.19110707]
[1748827964040,0.06104228,105460.0,105450.0,1.2031846]
[1748827964233,0.06104228,105460.0,105450.0,1.23278789]
[1748827964544,0.25059788,105460.0,105450.0,1.23378789]
[1748827964737,0.25059788,105460.0,105450.0,1.27742149]
[1748827964936,0.25059788,105460.0,105450.0,1.16230539]
[1748827967450,0.25059788,105460.0,105450.0,1.16230515]
[1748827968439,0.25059788,105460.0,105450.0,1.17532386]
[1748827969349,0.25059788,105460.0,105450.0,1.17532388]
[1748827969650,0.25059788,105460.0,105450.0,1.17532361]
[1748827969846,0.25059788,105460.0,105450.0,1.16230515]
[1748827970237,0.06104228,105460.0,105450.0,1.17532385]
[1748827970650,0.06104228,105460.0,105450.0,1.29043995]
[1748827970947,0.06529182,105460.0,105450.0,1.29043995]
[1748827971452,0.06529182,105460.0,105450.0,1.29044007]
[1748827971746,0.06529182,105460.0,105450.0,1.24680671]
[1748827971951,0.06529182,105460.0,105450.0,1.29046462]
[1748827972147,0.06529182,105460.0,105450.0,1.29046478]
[1748827973451,0.06554309,105460.0,105450.0,1.29046478]
[1748827973642,0.06554309,105460.0,105450.0,1.29046473]
[1748827974043,0.06554309,105460.0,105450.0,1.2774458]
[1748827976255,0.06554309,105460.0,105450.0,1.27744616]
[1748827977855,0.06554309,105460.0,105450.0,1.27744665]
[1748827980145,0.06554309,105460.0,105450.0,1.16233055]
[1748827980354,0.25509869,105460.0,105450.0,1.16233055]
[1748827980653,0.09614309,105460.0,105450.0,1.27744602]
[1748827980855,0.28569869,105460.0,105450.0,1.27744602]
[1748827981050,0.28569869,105460.0,105450.0,1.06422992]
[1748827981257,0.40081479,105460.0,105450.0,0.57306199]
[1748827981456,0.76161479,105460.0,105450.0,0.44263549]
[1748827981655,0.40081479,105460.0,105450.0,0.37135399]
[1748827982161,0.86161479,105460.0,105450.0,0.37135399]
[1748827982360,0.38569869,105460.0,105450.0,0.37135399]
[1748827982562,0.74702309,105460.0,105450.0,0.7784612]
[1748827982763,0.30214309,105460.0,105450.0,0.82063703]
[1748827982957,0.49169869,105460.0,105450.0,0.85213703]
[1748827983261,0.49169869,105460.0,105450.0,0.94093756]
[1748827983463,0.20214309,105460.0,105450.0,0.94093756]
[1748827983657,0.20214309,105460.0,105450.0,0.97163756]
[1748827983959,0.20214309,105460.0,105450.0,1.03084323]
[1748827984355,0.09626309,105460.0,105450.0,1.03084323]
[1748827986261,0.09626309,105460.0,105450.0,0.91572713]
[1748827986467,0.28581879,105460.0,105450.0,0.91572713]
[1748827986654,0.40093489,105460.0,105450.0,0.46262713]
[1748827986862,0.76173489,105460.0,105450.0,0.46262713]
[1748827987170,0.40093489,105460.0,105450.0,0.37381824]
[1748827987359,0.40093489,105460.0,105450.0,0.32657798]
[1748827987562,0.40093489,105460.0,105450.0,0.68737798]
[1748827987762,0.40093489,105460.0,105450.0,0.68735124]
[1748827988075,0.76173489,105460.0,105450.0,0.32664425]
[1748827988270,0.40093489,105460.0,105450.0,0.36177817]
[1748827988465,0.76173489,105460.0,105450.0,0.36177817]
[1748827989662,0.40093489,105460.0,105450.0,0.36177817]
[1748827989970,0.76173489,105460.0,105450.0,0.36177817]
[1748827991770,0.76173489,105460.0,105450.0,0.3025725]
[1748827991974,0.40093489,105460.0,105450.0,0.36177817]
[1748827992171,0.76173489,105460.0,105450.0,0.36177817]
[1748827992367,0.40093489,105460.0,105450.0,0.36177817]
[1748827992568,0.40093489,105460.0,105450.0,0.72256503]
[1748827993274,0.40093489,105460.0,105450.0,0.36176503]
[1748827993574,0.76173489,105460.0,105450.0,0.30255936]
[1748827994174,0.40093489,105460.0,105450.0,0.34176503]
[1748827994472,0.48957983,105460.0,105450.0,0.28255936]
[1748827994667,0.48957983,105460.0,105450.0,0.23423663]
[1748827994868,0.85037983,105460.0,105450.0,0.28255936]
[1748827995068,0.85037983,105460.0,105450.0,0.23423663]
[1748827995276,0.48533029,105460.0,105450.0,0.23423663]
[1748827995475,0.48533029,105460.0,105450.0,0.64335936]
[1748827995774,0.84613029,105460.0,105450.0,0.23423663]
[1748827996765,0.84613029,105460.0,105450.0,0.23422401]
[1748827997568,1.39597029,105460.0,105450.0,0.23422401]
[1748827997870,1.03513029,105460.0,105450.0,0.23422401]
[1748827998075,1.39593029,105460.0,105450.0,0.23422401]
[1748827998372,1.40017983,105460.0,105450.0,0.23422401]
[1748827998776,0.83549879,105460.0,105450.0,0.28422401]
[1748827998975,0.95061489,105460.0,105450.0,0.34552401]
[1748827999170,0.40081489,105460.0,105450.0,0.34552401]
[1748827999380,0.95037489,105460.0,105450.0,0.34552401]
[1748827999572,0.95049489,105460.0,105450.0,0.34552401]
[1748828001173,0.95049489,105460.0,105450.0,0.34552582]
[1748828001385,0.95049489,105460.0,105450.0,0.28422582]
[1748828003267,1.31129489,105460.0,105450.0,0.28422582]
[1748828003471,0.95049489,105460.0,105450.0,0.28422582]
[1748828003681,1.31129489,105460.0,105450.0,0.31672582]
[1748828003977,1.39993983,105460.0,105450.0,0.31672582]
[1748828004173,0.50697489,105460.0,105450.0,0.36504855]
[1748828004373,0.83469879,105460.0,105450.0,0.39794855]
[1748828004569,0.83469879,105460.0,105450.0,0.48905422]
[1748828004772,0.83457879,105460.0,105450.0,0.48905422]
[1748828004972,0.83469879,105460.0,105450.0,0.48905422]
[1748828005871,0.94981489,105460.0,105450.0,0.48905422]
[1748828007180,0.94981489,105460.0,105450.0,0.42425422]
[1748828007879,0.94981489,105460.0,105450.0,0.39175422]
[1748828009682,0.94981489,105460.0,105450.0,0.3481019]
[1748828009875,0.94981489,105460.0,105450.0,0.39177862]
[1748828010881,0.94981489,105460.0,105450.0,0.34345589]
[1748828011482,0.94556535,105460.0,105450.0,0.34345589]
[1748828011780,0.94556535,105460.0,105450.0,0.35660847]
[1748828011977,0.94556535,105460.0,105450.0,0.34345589]
[1748828012375,0.94556535,105460.0,105450.0,0.35661344]
[1748828012574,0.83044925,105460.0,105450.0,0.70425589]
[1748828012770,0.25084925,105460.0,105450.0,0.45070329]
[1748828013077,0.83224925,105460.0,105450.0,0.45070329]
[1748828013573,0.83212925,105460.0,105450.0,0.85982235]
[1748828013777,0.83224925,105460.0,105450.0,0.85982235]
[1748828013974,0.83224925,105460.0,105450.0,0.8597873]
[1748828014175,0.83224925,105460.0,105450.0,0.85978938]
[1748828014386,0.83224925,105460.0,105450.0,0.85978943]
[1748828014576,0.83649879,105460.0,105450.0,0.85979083]
[1748828015178,0.83649879,105460.0,105450.0,0.8597909]
[1748828016177,0.83649879,105460.0,105450.0,0.85979293]
[1748828016482,0.83649879,105460.0,105450.0,0.94860182]
[1748828017381,0.83649879,105460.0,105450.0,0.94860151]
[1748828017686,0.83649879,105460.0,105450.0,0.85979261]
[1748828017887,0.95161489,105460.0,105450.0,0.40489261]
[1748828018093,0.95161489,105460.0,105450.0,0.40489548]
[1748828018287,0.95161489,105460.0,105450.0,0.39178216]
[1748828018475,0.95161489,105460.0,105450.0,0.40493502]
[1748828018880,0.95161489,105460.0,105450.0,0.40492484]
[1748828019082,0.95161489,105460.0,105450.0,0.4049299]
[1748828019281,0.95161489,105460.0,105450.0,0.4049434]
[1748828019581,0.94736535,105460.0,105450.0,0.7657434]
[1748828020190,0.94736535,105460.0,105450.0,0.76570836]
[1748828020491,0.94736535,105460.0,105450.0,0.76570838]
[1748828021188,0.94736535,105460.0,105450.0,0.75258216]
[1748828021386,0.94736535,105460.0,105450.0,0.7657086]
[1748828022188,0.94736535,105460.0,105450.0,0.4049086]
[1748828022383,0.94736535,105460.0,105450.0,0.75258216]
[1748828022583,0.94736535,105460.0,105450.0,0.76570879]
[1748828022785,0.94736535,105460.0,105450.0,0.76570878]
[1748828023086,0.94736535,105460.0,105450.0,0.39179527]
[1748828023393,0.94736535,105460.0,105450.0,0.40495216]
[1748828023591,0.94736535,105460.0,105450.0,0.40495296]
[1748828023896,0.94736535,105460.0,105450.0,0.40495622]
[1748828024392,0.94736535,105460.0,105450.0,0.76573851]
[1748828024693,0.94736535,105460.0,105450.0,0.40495731]
[1748828024895,0.94736535,105460.0,105450.0,0.48060416]
[1748828025287,0.94736535,105460.0,105450.0,0.87230416]
[1748828026093,0.94736535,105460.0,105450.0,0.88437119]
[1748828028103,0.79600925,105460.0,105450.0,0.99948729]
[1748828028287,0.79600925,105460.0,105450.0,1.06308729]
[1748828028487,0.82922925,105460.0,105450.0,1.06308729]
[1748828028689,0.83347879,105460.0,105450.0,1.06308729]
[1748828029896,0.83347879,105460.0,105450.0,0.94797119]
[1748828031692,0.83347879,105460.0,105450.0,0.94797685]
[1748828039201,0.83347879,105460.0,105450.0,1.06308961]
[1748828039400,0.94859155,105460.0,105450.0,1.06308961]
[1748828039999,0.94434201,105460.0,105450.0,1.06308961]
[1748828040617,0.94434201,105460.0,105450.0,1.06308295]
[1748828040995,0.94434201,105460.0,105450.0,0.94797019]
[1748828041802,0.94434201,105460.0,105450.0,1.06308295]
[1748828043715,0.94434201,105460.0,105450.0,0.70228295]
[1748828043896,0.94434201,105460.0,105450.0,1.06308295]
[1748828044205,1.05945477,105460.0,105450.0,0.94797019]
[1748828044394,1.05945477,105460.0,105450.0,0.93593989]
[1748828044798,1.14809971,105460.0,105450.0,0.89157894]
[1748828045801,1.14809971,105460.0,105450.0,1.0066917]
[1748828045802,1.03298695,105460.0,105450.0,1.0066917]
[1748828046711,1.03298695,105460.0,105450.0,0.6458917]
[1748828046909,1.03298695,105460.0,105450.0,1.0066917]
[1748828047107,1.14809971,105460.0,105450.0,0.43193566]
[1748828047409,1.62655921,105460.0,105450.0,0.32707337]
[1748828047609,1.63791427,105460.0,105450.0,0.04469688]
[1748828047813,1.27711427,105460.0,105450.0,0.28262994]
[1748828048007,1.13559465,105460.0,105450.0,0.82299522]
[1748828048206,1.13292791,105460.0,105450.0,0.86539522]
[1748828048411,1.13304791,105460.0,105450.0,1.11669522]
[1748828050010,0.58788791,105460.0,105450.0,1.11669522]
[1748828050210,1.13292791,105460.0,105450.0,1.11669522]
[1748828050410,1.13304791,105460.0,105450.0,1.11669522]
[1748828052203,0.51317515,105460.0,105450.0,1.11596325]
[1748828052408,0.76437945,105460.0,105450.0,1.17516892]
[1748828052708,0.95413515,105460.0,105450.0,1.17516892]
[1748828052909,0.95421515,105460.0,105450.0,1.17516892]
[1748828053109,0.96932791,105460.0,105450.0,1.17516892]
[1748828053408,0.99972791,105460.0,105450.0,1.17516892]
[1748828053809,1.03272791,105460.0,105450.0,1.17516892]
[1748828054519,1.03272791,105460.0,105450.0,1.18719922]
[1748828054712,0.94402201,105460.0,105450.0,1.27600811]
[1748828055313,0.82890925,105460.0,105450.0,1.16089535]
[1748828056820,0.82890925,105460.0,105450.0,1.16090228]
[1748828059127,0.82862925,105460.0,105450.0,1.16090228]
[1748828059726,0.28346925,105460.0,105450.0,1.16090228]
[1748828059924,0.50167355,105460.0,105450.0,1.19111216]
[1748828060129,0.69110925,105460.0,105450.0,1.1307224]
[1748828060426,0.69122925,105460.0,105450.0,1.1307224]
[1748828061123,0.69122925,105460.0,105450.0,1.08773153]
[1748828061320,0.69122925,105460.0,105450.0,1.01561311]
[1748828062127,0.69122925,105460.0,105450.0,0.65481311]
[1748828062330,0.69122925,105460.0,105450.0,1.01561311]
[1748828063021,0.69122925,105460.0,105450.0,1.104422]
[1748828063327,0.69122925,105460.0,105450.0,1.11646809]
[1748828065221,0.72332925,105460.0,105450.0,1.11646809]
[1748828065529,0.72332925,105460.0,105450.0,1.11646602]
[1748828069834,0.72332925,105460.0,105450.0,1.07347792]
[1748828070133,0.72332925,105460.0,105450.0,1.11646468]
[1748828071835,0.72332925,105460.0,105450.0,0.75566468]
[1748828072033,0.72332925,105460.0,105450.0,1.11646468]
[1748828072820,0.72332925,105460.0,105450.0,0.75566468]
[1748828073026,0.72332925,105460.0,105450.0,1.11646468]
[1748828074245,0.72332925,105460.0,105450.0,1.07347792]
[1748828074538,0.72332925,105460.0,105450.0,1.11646394]
[1748828075133,0.83843953,105460.0,105450.0,1.23157422]
[1748828076434,0.39767953,105460.0,105450.0,1.23157422]
[1748828076638,0.65044383,105460.0,105450.0,1.23157422]
[1748828076840,0.72484925,105460.0,105450.0,1.23157422]
[1748828077137,0.82920925,105460.0,105450.0,1.23157422]
[1748828078639,0.82908915,105460.0,105450.0,1.1885882]
[1748828078838,0.82920915,105460.0,105450.0,1.23157709]
[1748828079537,0.19737355,105460.0,105450.0,1.23157709]
[1748828079837,0.60719355,105460.0,105450.0,1.18436719]
[1748828080030,0.60719355,105460.0,105450.0,1.18436718]
[1748828080229,0.60707355,105460.0,105450.0,1.18436718]
[1748828080438,0.60719355,105460.0,105450.0,1.18436718]
[1748828080637,0.60707355,105460.0,105450.0,1.18436718]
[1748828080831,0.60707355,105460.0,105450.0,1.18447613]
[1748828081233,0.60707355,105460.0,105450.0,1.17118733]
[1748828081440,0.60707355,105460.0,105450.0,1.18447615]
[1748828081638,0.60707355,105460.0,105450.0,1.18447614]
[1748828081939,0.60707355,105460.0,105450.0,1.17118733]
[1748828082435,0.60707355,105460.0,105450.0,1.18447602]
[1748828082741,0.62648801,105460.0,105450.0,1.18447602]
[1748828083038,0.81604351,105460.0,105450.0,1.14148747]
[1748828083242,0.62648801,105460.0,105450.0,1.18448689]
[1748828083535,0.62648801,105460.0,105450.0,1.17119786]
[1748828083739,0.62648801,105460.0,105450.0,1.18448706]
[1748828084543,0.81604361,105460.0,105450.0,1.23284172]
[1748828084934,0.84654361,105460.0,105450.0,1.18847653]
[1748828085127,0.84654361,105460.0,105450.0,1.17518741]
[1748828085334,0.84654361,105460.0,105450.0,1.18847653]
[1748828085535,0.08032801,105460.0,105450.0,1.18847677]
[1748828085734,0.62592801,105460.0,105450.0,1.1884767]
[1748828086145,0.62580801,105460.0,105450.0,1.1884767]
[1748828086335,0.62592801,105460.0,105450.0,1.1884767]
[1748828086640,0.62592801,105460.0,105450.0,1.144033]
[1748828086844,0.62592801,105460.0,105450.0,1.18847778]
[1748828087144,0.62592801,105460.0,105450.0,1.18847777]
[1748828087345,0.62592801,105460.0,105450.0,1.14403328]
[1748828087546,0.18468801,105460.0,105450.0,1.14403476]
[1748828087738,0.18468801,105460.0,105450.0,1.1440348]
[1748828088046,0.18468801,105460.0,105450.0,1.14403481]
[1748828088546,0.18468801,105460.0,105450.0,1.13074519]
[1748828088743,0.18468801,105460.0,105450.0,1.17519112]
[1748828089343,0.18468801,105460.0,105450.0,1.13074519]
[1748828089546,0.18468801,105460.0,105450.0,1.17519221]
[1748828090046,0.37424351,105460.0,105450.0,1.17519221]
[1748828090445,0.18468801,105460.0,105450.0,1.17519221]
[1748828090655,0.27339391,105460.0,105450.0,1.08774429]
[1748828090840,0.27339391,105460.0,105450.0,1.17519427]
[1748828091940,0.18468801,105460.0,105450.0,1.21955618]
[1748828092649,0.37424361,105460.0,105450.0,1.21955618]
[1748828092952,0.40734361,105460.0,105450.0,1.66031618]
[1748828093245,0.52245389,105460.0,105450.0,1.66031618]
[1748828093649,0.52670343,105460.0,105450.0,1.66031618]
[1748828094648,0.52670343,105460.0,105450.0,1.6723512]
[1748828095151,0.42234343,105460.0,105450.0,1.6723512]
[1748828095839,0.30723315,105460.0,105450.0,1.6723512]
[1748828096336,0.30723315,105460.0,105450.0,1.67234894]
[1748828097852,0.42234343,105460.0,105450.0,1.67234894]
[1748828098348,0.42234343,105460.0,105450.0,1.67234863]
[1748828098850,0.30723315,105460.0,105450.0,1.23158863]
[1748828100152,0.11767755,105460.0,105450.0,1.23158863]
[1748828100750,0.11767755,105460.0,105450.0,1.02318391]
[1748828100954,0.11767755,105460.0,105450.0,1.23178274]
[1748828101342,0.11767755,105460.0,105450.0,1.12952199]
[1748828101649,0.11767755,105460.0,105450.0,1.23178326]
[1748828101848,0.11342801,105460.0,105450.0,1.2450619]
[1748828102152,0.30298361,105460.0,105450.0,1.24506197]
[1748828102347,0.09401355,105460.0,105450.0,1.24506197]
[1748828102553,0.09401355,105460.0,105450.0,1.26248176]
[1748828102743,0.06091355,105460.0,105450.0,1.1899419]
[1748828102943,0.06091355,105460.0,105450.0,1.20320262]
[1748828103153,0.06091355,105460.0,105450.0,1.24380928]
[1748828103656,0.06091355,105460.0,105450.0,1.24379069]
[1748828103842,0.09241355,105460.0,105450.0,1.24379069]
[1748828104049,0.09241355,105460.0,105450.0,1.24379067]
[1748828104557,0.09241355,105460.0,105450.0,1.33264434]
[1748828104747,0.09241355,105460.0,105450.0,1.31943453]
[1748828105054,0.09241355,105460.0,105450.0,1.33264432]
[1748828105251,0.09241355,105460.0,105450.0,1.33264433]
[1748828105443,0.09241355,105460.0,105450.0,1.31943453]
[1748828105650,0.09241355,105460.0,105450.0,1.33264431]
[1748828105849,0.09241355,105460.0,105450.0,1.31943453]
[1748828106050,0.09241355,105460.0,105450.0,1.33264431]
[1748828107250,0.09241355,105460.0,105450.0,1.33264294]
[1748828107759,0.09241355,105460.0,105450.0,1.33264207]
[1748828108057,0.09241355,105460.0,105450.0,1.33264209]
[1748828108247,0.09241355,105460.0,105450.0,1.28960849]
[1748828108448,0.09241355,105460.0,105450.0,1.33258148]
[1748828108648,0.09241355,105460.0,105450.0,1.26009149]
[1748828108857,0.09241355,105460.0,105450.0,1.18983815]
[1748828109248,0.09241355,105460.0,105450.0,1.20304563]
[1748828109452,0.09241355,105460.0,105450.0,1.18983815]
[1748828110653,0.09241355,105460.0,105450.0,1.20304549]
[1748828110856,0.09241355,105460.0,105450.0,1.18983815]
[1748828111054,0.09241355,105460.0,105450.0,1.20304549]
[1748828111256,0.09241355,105460.0,105450.0,1.18983815]
[1748828111652,0.21407828,105480.0,105470.0,0.1895376]
[1748828111859,0.31087828,105480.0,105470.0,1.15114892]
[1748828112066,0.22210737,105480.0,105470.0,1.30416214]
[1748828112257,0.22210737,105480.0,105470.0,2.80416214]
[1748828112560,0.11782737,105480.0,105470.0,2.85124724]
[1748828112864,0.22210737,105480.0,105470.0,2.85124724]
[1748828113060,0.22522737,105480.0,105470.0,2.85124724]
[1748828113258,0.01945627,105490.0,105470.0,3.32024163]
[1748828113456,0.05205627,105490.0,105480.0,1.53455332]
[1748828113763,0.05205627,105490.0,105480.0,1.98039063]